[Event "ICN Year End Invitational 2024"]
[Site "New York"]
[Date "2024.06.17"]
[Round "1.1"]
[White "Zhu, Linxi"]
[Black "Goodrich, Elliott"]
[Result "0-1"]
[ECO "C65"]
[WhiteElo "2133"]
[BlackElo "1952"]
[Annotator "RC"]
[PlyCount "60"]
[EventDate "2024.06.16"]
[EventType "swiss"]
[EventCountry "USA"]
[SourceTitle "playchess.com"]
[Source "ChessBase"]
[SourceQuality "1"]
[TimeMode "Bronstein"]
[TimeControl "2700+5"]

1. e4 {[%emt 0:00:14]} e5 {[%emt 0:00:08]} 2. Nf3 {[%emt 0:00:17]} Nc6 {[%emt 0:00:05]} 3. Bb5 {[%emt 0:00:06]} Nf6 {[%emt 0:00:05]} 4. d3 {[%emt 0:00:14]} Bc5 {[%emt 0:00:09]} 5. O-O {[%emt 0:00:11]} Nd4 {[%emt 0:01:11]} 6. Nxd4 {[%emt 0:00:18]} Bxd4 {[%emt 0:00:05]} 7. c3 {[%emt 0:01:05]} Bb6 {[%emt 0:00:11]} 8. Bg5 {[%emt 0:02:31]} c6 {[%emt 0:01:34]} 9. Ba4 {[%emt 0:00:45]} h6 {[%emt 0:01:16]} 10. Bh4 {[%emt 0:00:27]} d6 {[%emt 0:01:36]} 11. Nd2 {[%emt 0:03:44]} Be6 {[%emt 0:02:21]} 12. Nf3 {[%emt 0:05:33]} Qc7 {[%emt 0:05:43]} 13. Re1 {[%emt 0:03:00]} O-O-O {[%emt 0:04:51]} 14. d4 {[%emt 0:02:37]} Bg4 {[%emt 0:02:06]} 15. h3 {[%emt 0:04:02]} Bxf3 {[%emt 0:03:11]} 16. Qxf3 {[%emt 0:00:11]} exd4 {[%emt 0:01:00]} 17. Bxf6 {[%emt 0:00:26]} gxf6 {[%emt 0:00:05]} 18. Qxf6 {[%emt 0:00:05]} dxc3 {[%emt 0:01:07]} 19. bxc3 {[%emt 0:00:55]} Rhg8 {[%emt 0:01:04]} 20. Bb3 d5 {[%emt 0:00:05]} 21. exd5 Qg3 {[%emt 0:00:05]} 22. Qf5+ Rd7 {[%emt 0:00:05]} 23. Kf1 Qxg2+ {[%emt 0:00:05]} 24. Ke2 Bxf2 {[%emt 0:00:05]} 25. Rf1 {[%emt 0:14:14]} Bd4+ {[%emt 0:07:03]} 26. Kd3 {[%emt 0:03:38]} Rg3+ {[%emt 0:00:06]} 27. Kc4 {[%emt 0:01:16]} Qe2+ {[%emt 0:00:19]} 28. Kxd4 {[%emt 0:01:03]} Qd2+ {[%emt 0:00:05]} 29. Ke5 {[%emt 0:00:05]} Qxc3+ {[%emt 0:00:05]} 30. Ke4 {[%emt 0:00:08]} Qe3# {[%emt 0:00:00]} 0-1

[Event "ICN Year End Invitational 2024"]
[Site "New York"]
[Date "2024.06.17"]
[Round "1.2"]
[White "Stern, Kevin B"]
[Black "Chakravarty, Aritro"]
[Result "0-1"]
[ECO "A84"]
[WhiteElo "1934"]
[BlackElo "2015"]
[Annotator "RC"]
[PlyCount "84"]
[EventDate "2024.06.16"]
[EventType "swiss"]
[EventCountry "USA"]
[SourceTitle "playchess.com"]
[Source "ChessBase"]
[SourceQuality "1"]
[TimeMode "Bronstein"]
[TimeControl "2700+5"]

1. c4 {[%emt 0:00:05]} f5 {[%emt 0:00:08]} 2. Nf3 {[%emt 0:00:08]} Nf6 {[%emt 0:00:05]} 3. d4 {[%emt 0:00:06]} g6 {[%emt 0:00:05]} 4. b4 {[%emt 0:00:08]} Bg7 {[%emt 0:00:14]} 5. Bb2 {[%emt 0:00:05]} O-O {[%emt 0:00:05]} 6. e3 {[%emt 0:00:05]} d6 {[%emt 0:00:39]} 7. Nbd2 {[%emt 0:00:51]} e6 {[%emt 0:00:35]} 8. Be2 {[%emt 0:01:04]} Qe7 {[%emt 0:00:05]} 9. O-O {[%emt 0:01:19]} Nc6 {[%emt 0:00:59]} 10. Qb3 {[%emt 0:01:04]} a6 {[%emt 0:00:39]} 11. a4 {[%emt 0:01:37]} Nd8 {[%emt 0:00:12]} 12. b5 {[%emt 0:01:49]} Nf7 {[%emt 0:00:36]} 13. Ba3 {[%emt 0:01:25]} e5 {[%emt 0:00:53]} 14. dxe5 {[%emt 0:01:00]} Nxe5 {[%emt 0:00:12]} 15. Nxe5 {[%emt 0:00:16]} Qxe5 {[%emt 0:00:05]} 16. Nf3 {[%emt 0:00:05]} Qe7 {[%emt 0:01:00]} 17. Nd4 {[%emt 0:02:06]} Kh8 {[%emt 0:00:46]} 18. bxa6 {[%emt 0:00:30]} bxa6 {[%emt 0:00:26]} 19. Bf3 {[%emt 0:01:59]} Ne4 {[%emt 0:00:11]} 20. Bb2 {[%emt 0:00:39]} Bd7 {[%emt 0:01:59]} 21. Qc2 {[%emt 0:01:50]} Rab8 {[%emt 0:00:37]} 22. Rab1 {[%emt 0:00:21]} c5 {[%emt 0:04:25]} 23. Ne2 {[%emt 0:00:10]} Bxb2 {[%emt 0:03:16]} 24. Rxb2 {[%emt 0:00:05]} Bxa4 {[%emt 0:00:11]} 25. Qc1 {[%emt 0:00:59]} Qe5 {[%emt 0:01:30]} 26. Rxb8 {[%emt 0:00:48]} Rxb8 {[%emt 0:00:05]} 27. Bxe4 {[%emt 0:00:10]} fxe4 {[%emt 0:00:20]} 28. Nc3 {[%emt 0:03:46]} Bb3 {[%emt 0:00:36]} 29. Nd5 {[%emt 0:00:57]} a5 {[%emt 0:00:14]} 30. Nc7 {[%emt 0:02:22]} a4 {[%emt 0:01:04]} 31. Nb5 {[%emt 0:00:06]} d5 {[%emt 0:03:10]} 32. Na3 {[%emt 0:01:01]} d4 {[%emt 0:00:43]} 33. exd4 {[%emt 0:02:11]} cxd4 {[%emt 0:00:07]} 34. Re1 {[%emt 0:02:12]} d3 {[%emt 0:00:52]} 35. Nb1 {[%emt 0:01:35]} Bc2 {[%emt 0:08:07]} 36. Nd2 {[%emt 0:00:54]} Qb2 {[%emt 0:02:42]} 37. c5 {[%emt 0:02:59]} a3 {[%emt 0:01:16]} 38. c6 {[%emt 0:01:25]} Rc8 {[%emt 0:01:16]} 39. Nxe4 {[%emt 0:00:33]} Qxc1 {[%emt 0:00:05]} 40. Rxc1 {[%emt 0:00:06]} Rxc6 {[%emt 0:00:06]} 41. Ra1 {[%emt 0:00:28]} Re6 {[%emt 0:00:55]} 42. Nc3 {[%emt 0:01:23]} d2 {[%emt 0:00:10]} 0-1

[Event "ICN Year End Invitational 2024"]
[Site "New York"]
[Date "2024.06.17"]
[Round "2.1"]
[White "Chakravarty, Aritro"]
[Black "Das, Aditeya"]
[Result "1/2-1/2"]
[ECO "A11"]
[WhiteElo "2015"]
[BlackElo "1983"]
[Annotator "NA"]
[PlyCount "114"]
[EventDate "2024.06.16"]
[EventType "swiss"]
[EventCountry "USA"]
[SourceTitle "playchess.com"]
[Source "ChessBase"]
[SourceQuality "1"]
[TimeMode "Bronstein"]
[TimeControl "2700+5"]

1. d4 {[%emt 0:00:05]} d5 {[%emt 0:00:05]} 2. c4 {[%emt 0:00:07]} c6 {[%emt 0:00:05]} 3. Nf3 {[%emt 0:00:05]} Nf6 {[%emt 0:00:05]} 4. g3 {[%emt 0:00:05]} g6 {[%emt 0:00:05]} 5. Bg2 {[%emt 0:00:05]} Bg7 {[%emt 0:00:05]} 6. O-O {[%emt 0:00:05]} O-O {[%emt 0:00:05]} 7. b3 {[%emt 0:00:31]} h6 {[%emt 0:00:07]} 8. Bb2 {[%emt 0:00:13]} Bf5 {[%emt 0:00:17]} 9. Nc3 {[%emt 0:00:05]} g5 {[%emt 0:00:05]} 10. Nd2 {[%emt 0:00:24]} e6 {[%emt 0:00:15]} 11. e4 {[%emt 0:00:20]} dxe4 {[%emt 0:00:12]} 12. Ndxe4 {[%emt 0:00:05]} Nxe4 {[%emt 0:00:21]} 13. Nxe4 {[%emt 0:00:05]} Bxe4 {[%emt 0:00:49]} 14. Bxe4 {[%emt 0:00:05]} Nd7 {[%emt 0:00:35]} 15. Qe2 {[%emt 0:00:40]} Qc7 {[%emt 0:00:42]} 16. Rad1 {[%emt 0:00:21]} f5 {[%emt 0:00:15]} 17. Bg2 {[%emt 0:00:44]} Rae8 {[%emt 0:00:23]} 18. f4 {[%emt 0:03:15]} g4 {[%emt 0:01:26]} 19. Qf2 {[%emt 0:03:34]} Nf6 {[%emt 0:01:59]} 20. Rfe1 {[%emt 0:00:11]} Kh7 {[%emt 0:01:36]} 21. Qc2 {[%emt 0:00:57]} Rf7 {[%emt 0:00:52]} 22. Rxe6 {[%emt 0:04:13]} Rxe6 {[%emt 0:01:10]} 23. Qxf5+ {[%emt 0:00:05]} Kh8 {[%emt 0:00:06]} 24. Qxe6 {[%emt 0:00:05]} Re7 {[%emt 0:00:05]} 25. Qf5 {[%emt 0:00:05]} Re2 {[%emt 0:00:13]} 26. Bc3 {[%emt 0:01:38]} Qe7 {[%emt 0:00:07]} 27. Qd3 {[%emt 0:00:05]} Re3 {[%emt 0:00:48]} 28. Qd2 {[%emt 0:00:41]} Re2 {[%emt 0:06:36]} 29. Re1 {[%emt 0:01:12]} Rxd2 {[%emt 0:00:07]} 30. Rxe7 {[%emt 0:00:05]} Rc2 {[%emt 0:00:09]} 31. Be1 {[%emt 0:02:41]} Ng8 {[%emt 0:00:05]} 32. Rd7 {[%emt 0:01:15]} Rxa2 {[%emt 0:00:40]} 33. Bf2 {[%emt 0:00:15]} Ra1+ {[%emt 0:00:07]} 34. Bf1 {[%emt 0:00:05]} Nf6 {[%emt 0:01:42]} 35. Rd8+ {[%emt 0:04:32]} Kh7 {[%emt 0:01:42]} 36. Kg2 {[%emt 0:00:05]} Kg6 {[%emt 0:00:33]} 37. Rb8 {[%emt 0:01:46]} b6 {[%emt 0:00:56]} 38. Rb7 {[%emt 0:01:34]} Kh7 {[%emt 0:00:55]} 39. Bd3+ {[%emt 0:01:37]} Kg8 {[%emt 0:00:06]} 40. Bg6 {[%emt 0:00:16]} Ra2 {[%emt 0:01:11]} 41. Rc7 {[%emt 0:00:56]} Ne8 {[%emt 0:01:36]} 42. Rd7 {[%emt 0:01:15]} Nf6 {[%emt 0:00:14]} 43. Rd6 {[%emt 0:01:34]} c5 {[%emt 0:00:10]} 44. dxc5 {[%emt 0:02:07]} bxc5 {[%emt 0:00:05]} 45. Rd1 {[%emt 0:00:37]} Bf8 {[%emt 0:00:23]} 46. Bf5 {[%emt 0:00:50]} h5 {[%emt 0:00:45]} 47. Re1 {[%emt 0:00:21]} Kf7 {[%emt 0:01:14]} 48. Be6+ {[%emt 0:00:16]} Kg7 {[%emt 0:00:37]} 49. h3 {[%emt 0:01:14]} gxh3+ {[%emt 0:00:21]} 50. Bxh3 {[%emt 0:00:05]} Ng4 {[%emt 0:00:18]} 51. Bxg4 {[%emt 0:00:05]} hxg4 {[%emt 0:00:07]} 52. Re5 {[%emt 0:00:15]} Rb2 {[%emt 0:00:53]} 53. Rd5 {[%emt 0:01:02]} Rxb3 {[%emt 0:00:33]} 54. Rd7+ {[%emt 0:00:05]} Kf6 {[%emt 0:00:16]} 55. Rxa7 {[%emt 0:00:05]} Rb4 {[%emt 0:00:05]} 56. Ra6+ {[%emt 0:00:32]} Kf7 {[%emt 0:00:05]} 57. Ra7+ {[%emt 0:00:17]} Kf6 {[%emt 0:00:05]} 1/2-1/2

[Event "ICN Year End Invitational 2024"]
[Site "New York"]
[Date "2024.06.17"]
[Round "2.2"]
[White "Goodrich, Elliott"]
[Black "Mullodzhanov, Nathaniel"]
[Result "0-1"]
[ECO "B11"]
[WhiteElo "1952"]
[BlackElo "1927"]
[Annotator "TA"]
[PlyCount "104"]
[EventDate "2024.06.16"]
[EventType "swiss"]
[EventCountry "USA"]
[SourceTitle "playchess.com"]
[Source "ChessBase"]
[SourceQuality "1"]
[TimeMode "Bronstein"]
[TimeControl "2700+5"]

{[%evp 10,104,12,4,23,16,33,29,18,6,89,83,108,136,130,87,166,77,98,81,77,45,133,139,116,100,119,102,97,122,97,104,92,92,83,95,97,91,99,99,91,92,99,103,92,79,77,72,90,96,99,80,93,93,107,107,148,88,88,88,101,89,101,88,239,227,236,202,203,203,328,313,956,913,1054,966,815,801,753,578,473,0,0,0,0,-29985,-29986,-29986,-29987,-29987,-29988,-29988,-29989,-29992,-29991,-29991,-29991]} 1. e4 {[%emt 0:00:05]} c6 {[%emt 0:00:08]} 2. Nc3 {[%emt 0:00:05]} d5 {[%emt 0:00:05]} 3. Nf3 {[%emt 0:00:05]} Bg4 {[%emt 0:00:05]} 4. h3 {[%emt 0:00:05]} Bxf3 {[%emt 0:00:05]} 5. Qxf3 {[%emt 0:00:07]} e6 {[%emt 0:00:07]} 6. Be2 {[%emt 0:00:17]} Bc5 {[%emt 0:00:09]} 7. O-O {[%emt 0:00:41]} Nf6 {[%emt 0:01:02]} 8. Rd1 {[%emt 0:01:05]} Bd4 {[%emt 0:01:56] White has an edge.} 9. d3 {[%emt 0:01:25]} Bxc3 {[%emt 0:03:05]} (9... Nbd7 $11) 10. bxc3 $16 {[%emt 0:00:07]} dxe4 {[%emt 0:00:05]} 11. dxe4 {[%emt 0:00:05]} Qc7 {[%emt 0:00:11]} 12. Ba3 {[%emt 0:02:44] Strongly threatening Bd6.} Nbd7 {[%emt 0:03:21]} (12... c5 $16 {might work better.}) 13. Rab1 {[%emt 0:01:44]} (13. Bd6 $18 {is more deadly.} Qa5 14. Qe3) 13... O-O-O {[%emt 0:02:07]} 14. Qe3 {[%emt 0:10:22]} c5 {[%emt 0:08:39]} 15. Bf3 {[%emt 0:05:10][%cal Oe4e5]} Qe5 {[%emt 0:01:20]} ({Black should try} 15... Ne5 $14) 16. c4 {[%emt 0:01:58]} Nb6 {[%emt 0:09:37][%cal Bd7b6,Bb6c4,Bc4a5,Ba5c6][%mdl 32]} 17. Rxd8+ {[%emt 0:01:16]} (17. Bb2 {simplifies} Rxd1+ 18. Bxd1 Qc7 19. Be2) 17... Rxd8 {[%emt 0:00:10]} 18. Bxc5 {[%emt 0:01:21][%cal Ba3c5,Bc5a7,Ba7e3][%mdl 32]} (18. Qxc5+ $6 Qxc5 19. Bxc5 Rd2 $11) 18... Nxc4 {[%emt 0:00:33]} 19. Qb3 {[%emt 0:00:05]} Na5 {[%emt 0:00:08]} 20. Qb5 {[%emt 0:01:46]} Nd7 {[%emt 0:02:41]} 21. Bxa7 {[%emt 0:02:26] Threatens to win with Qxe5.} Qxb5 {[%emt 0:00:09]} 22. Rxb5 {[%emt 0:00:05]} Nc6 {[%emt 0:00:35]} 23. Be3 {[%emt 0:00:37]} Kc7 {[%emt 0:00:52]} 24. Be2 {[%emt 0:02:30]} Ra8 {[%emt 0:01:05]} 25. Rb2 $1 {[%emt 0:01:10]} Ra4 {[%emt 0:00:32]} 26. f3 {[%emt 0:00:14]} Nd4 {[%emt 0:00:16]} 27. Bxd4 {[%emt 0:01:10]} Rxd4 {[%emt 0:00:11][%mdl 4096] Endgame. KRB-KRN} 28. Kf2 {[%emt 0:00:11]} e5 {[%emt 0:00:18]} 29. c3 {[%emt 0:00:23]} Rd6 {[%emt 0:00:08]} 30. Bc4 {[%emt 0:00:24]} f6 {[%emt 0:00:10]} 31. Bd5 {[%emt 0:00:34]} Rb6 {[%emt 0:00:05]} 32. Rxb6 {[%emt 0:00:19]} Kxb6 {[%emt 0:00:08] KB-KN} 33. Ke3 {[%emt 0:00:33]} ({Better is} 33. h4) 33... Nc5 {[%emt 0:00:23]} 34. Bb3 {[%emt 0:00:22]} h6 {[%emt 0:00:24]} 35. g3 {[%emt 0:00:13]} Kb5 {[%emt 0:00:19]} 36. f4 {[%emt 0:00:32]} Nd7 $2 {[%emt 0:00:20]} (36... b6 $16) 37. Kf3 $18 {[%emt 0:00:16]} Nc5 {[%emt 0:00:22]} 38. fxe5 {[%emt 0:00:46]} fxe5 {[%emt 0:00:05]} 39. Bd5 $1 {[%emt 0:00:11] Hoping for Kg4.} b6 {[%emt 0:00:20] [#]} (39... Nd7 {is a better defense.} 40. Kg4 (40. Bxb7 Nf6 $18) 40... g6 41. Bxb7 Kc4) 40. Kg4 $1 {[%emt 0:00:11]} Nd3 $2 {[%emt 0:00:19]} (40... g6 41. Kh4 Na4) 41. Kf5 {[%emt 0:00:08]} g5 {[%emt 0:05:29]} 42. h4 {[%emt 0:00:32]} gxh4 {[%emt 0:00:06]} 43. gxh4 {[%emt 0:00:05] aiming for c4+.} Kc5 {[%emt 0:00:05]} 44. Kf6 {[%emt 0:00:40]} Kd6 {[%emt 0:00:07]} 45. Kg6 $2 {[%emt 0:00:40]} (45. Kg7 $18) 45... Nf4+ $11 {[%emt 0:00:05]} 46. Kxh6 {[%emt 0:00:05] Black must now prevent Kg5.} Nxd5 {[%emt 0:00:05]} 47. exd5 {[%emt 0:00:05][%mdl 8192] [#] KP-KP} (47. Kg6 $11) 47... e4 $1 {[%emt 0:00:05] Black mates.} 48. Kg5 {[%emt 0:00:07]} e3 $1 {[%emt 0:00:05]} (48... Kxd5 $2 {is the wrong capture.} 49. Kf4 $18) 49. h5 {[%emt 0:00:05]} e2 $1 {[%emt 0:00:05]} ({Inferior is} 49... Kxd5 50. h6 $11) 50. h6 {[%emt 0:00:05]} e1=Q {[%emt 0:00:05]} ({Stronger than} 50... e1=R 51. c4 $11) 51. Kg6 {[%emt 0:00:05]} Qxc3 {[%emt 0:00:05]} 52. h7 {[%emt 0:00:05]} Qh8 {[%emt 0:00:05] Weighted Error Value: White=0.36/Black=0.19 (very precise) .  Loses game:     	White=1     	---        Mistake:       	White=2     	Black=6      Inaccurate:     	White=2     	Black=1      OK:         	White=13    	Black=15     Best:        	White=1     	Black=4      Strong:       	White=3     	Black=1} 0-1

[Event "ICN Year End Invitational 2024"]
[Site "New York"]
[Date "2024.06.17"]
[Round "3.1"]
[White "Mullodzhanov, Nathaniel"]
[Black "Chakravarty, Aritro"]
[Result "1/2-1/2"]
[ECO "B22"]
[WhiteElo "1927"]
[BlackElo "2015"]
[Annotator "RC"]
[PlyCount "133"]
[EventDate "2024.06.16"]
[EventType "swiss"]
[EventCountry "USA"]
[SourceTitle "playchess.com"]
[Source "ChessBase"]
[SourceQuality "1"]
[TimeMode "Bronstein"]
[TimeControl "2700+5"]

1. e4 {[%emt 0:00:05]} c5 {[%emt 0:00:05]} 2. c3 {[%emt 0:00:05]} g6 {[%emt 0:00:15]} 3. d4 {[%emt 0:00:05]} cxd4 {[%emt 0:00:05]} 4. cxd4 {[%emt 0:00:05]} d5 {[%emt 0:00:05]} 5. e5 {[%emt 0:00:05]} Nc6 {[%emt 0:00:07]} 6. Nc3 {[%emt 0:00:39]} Bg7 {[%emt 0:00:07]} 7. Bb5 {[%emt 0:00:16]} Nh6 {[%emt 0:01:31]} 8. Nf3 {[%emt 0:00:40]} Bg4 {[%emt 0:00:05]} 9. h3 {[%emt 0:00:29]} Bxf3 {[%emt 0:00:05]} 10. Qxf3 {[%emt 0:00:05]} Nf5 {[%emt 0:00:53]} 11. Be3 {[%emt 0:02:58]} O-O {[%emt 0:00:13]} 12. Qxd5 {[%emt 0:02:47]} Ncxd4 {[%emt 0:01:28]} 13. Bxd4 {[%emt 0:02:38]} Nxd4 {[%emt 0:00:10]} 14. Bd3 {[%emt 0:00:30]} Qxd5 {[%emt 0:00:27]} 15. Nxd5 {[%emt 0:00:05]} Rfd8 {[%emt 0:00:05]} 16. Be4 {[%emt 0:01:18]} Bxe5 {[%emt 0:00:45]} 17. O-O {[%emt 0:03:41]} Rd7 {[%emt 0:05:09]} 18. Rfe1 {[%emt 0:02:18]} Rad8 {[%emt 0:03:20]} 19. Nc3 {[%emt 0:00:53]} Bf6 {[%emt 0:00:19]} 20. g3 {[%emt 0:00:25]} Ne6 {[%emt 0:00:15]} 21. Rac1 {[%emt 0:00:49]} Nc5 {[%emt 0:01:13]} 22. Re2 {[%emt 0:00:18]} Rd2 {[%emt 0:04:24]} 23. Bf3 {[%emt 0:01:17]} b6 24. b4 {[%emt 0:01:01]} Ne6 {[%emt 0:02:16]} 25. Ne4 {[%emt 0:00:39]} Rxe2 {[%emt 0:00:20]} 26. Nxf6+ {[%emt 0:00:14]} exf6 {[%emt 0:00:05]} 27. Bxe2 {[%emt 0:00:06]} Rd2 {[%emt 0:00:11]} 28. Rc8+ {[%emt 0:00:17]} Kg7 {[%emt 0:00:05]} 29. Bc4 {[%emt 0:00:05]} Rd7 {[%emt 0:01:23]} 30. h4 {[%emt 0:01:20]} f5 {[%emt 0:00:39]} 31. Kf1 {[%emt 0:00:17]} Nd4 {[%emt 0:00:19]} 32. a4 {[%emt 0:00:32]} f4 {[%emt 0:01:09]} 33. gxf4 {[%emt 0:00:43]} Nf3 {[%emt 0:01:49]} 34. h5 {[%emt 0:01:16]} Rd4 {[%emt 0:01:35]} 35. Ke2 {[%emt 0:01:13]} Rxf4 {[%emt 0:00:10]} 36. hxg6 {[%emt 0:17:46]} hxg6 {[%emt 0:00:35]} 37. Rc7 {[%emt 0:00:00]} Ne5 {[%emt 0:00:18]} 38. Bb5 {[%emt 0:00:00]} a5 {[%emt 0:03:26]} 39. bxa5 {[%emt 0:00:00]} bxa5 {[%emt 0:00:05]} 40. Rc5 {[%emt 0:00:00]} Ng4 {[%emt 0:00:52]} 41. f3 {[%emt 0:00:00]} Nh6 {[%emt 0:01:38]} 42. Rd5 {[%emt 0:00:00]} Rb4 {[%emt 0:02:37]} 43. Kd3 {[%emt 0:00:00]} Rb3+ {[%emt 0:00:08]} 44. Ke2 {[%emt 0:00:00]} Nf5 {[%emt 0:01:05]} 45. Rd7 {[%emt 0:00:00]} Rb4 {[%emt 0:00:42]} 46. Kd3 {[%emt 0:00:00]} Rb3+ {[%emt 0:01:13]} 47. Ke2 {[%emt 0:00:00]} Re3+ {[%emt 0:00:38]} 48. Kf2 {[%emt 0:00:00]} Rc3 {[%emt 0:00:05]} 49. Bd3 {[%emt 0:00:05]} Ra3 {[%emt 0:00:51]} 50. Bxf5 {[%emt 0:00:00]} gxf5 {[%emt 0:00:05]} 51. Rd4 {[%emt 0:00:00]} Kf6 {[%emt 0:00:05]} 52. f4 {[%emt 0:00:00]} Kg6 {[%emt 0:00:10]} 53. Rd6+ {[%emt 0:00:00]} f6 {[%emt 0:00:11]} 54. Rd4 {[%emt 0:00:00]} Kh5 {[%emt 0:00:31]} 55. Rc4 {[%emt 0:00:00]} Kg4 {[%emt 0:00:05]} 56. Ke2 {[%emt 0:00:00]} Kg3 {[%emt 0:00:46]} 57. Rd4 {[%emt 0:00:00]} Kg2 {[%emt 0:00:51]} 58. Rc4 {[%emt 0:00:00]} Kg3 {[%emt 0:00:07]} 59. Rd4 {[%emt 0:00:00]} Ra2+ {[%emt 0:00:23]} 60. Ke3 {[%emt 0:00:00]} Rf2 {[%emt 0:00:18]} 61. Rd5 {[%emt 0:00:00]} Rxf4 {[%emt 0:00:17]} 62. Rxa5 {[%emt 0:00:00]} Re4+ {[%emt 0:00:05]} 63. Kd3 {[%emt 0:00:00]} Re5 {[%emt 0:00:25]} 64. Ra6 {[%emt 0:00:00]} f4 {[%emt 0:00:11]} 65. Rxf6 {[%emt 0:00:00]} Ra5 {[%emt 0:00:05]} 66. Ke2 {[%emt 0:00:00]} Rxa4 {[%emt 0:00:06]} 67. Rg6+ {[%emt 0:00:00]} 1/2-1/2

[Event "ICN Year End Invitational 2024"]
[Site "New York"]
[Date "2024.06.17"]
[Round "3.2"]
[White "Das, Aditeya"]
[Black "Zhu, Linxi"]
[Result "0-1"]
[ECO "B51"]
[WhiteElo "1983"]
[BlackElo "2133"]
[Annotator "RC"]
[PlyCount "164"]
[EventDate "2024.06.16"]
[EventType "swiss"]
[EventCountry "USA"]
[SourceTitle "playchess.com"]
[Source "ChessBase"]
[SourceQuality "1"]
[TimeMode "Bronstein"]
[TimeControl "2700+5"]

1. e4 {[%emt 0:00:05]} c5 {[%emt 0:00:08]} 2. Nf3 {[%emt 0:00:05]} d6 {[%emt 0:00:10]} 3. Bb5+ {[%emt 0:00:05]} Nd7 {[%emt 0:00:07]} 4. c3 {[%emt 0:00:05]} Ngf6 {[%emt 0:00:23]} 5. Qe2 {[%emt 0:00:05]} a6 {[%emt 0:00:11]} 6. Ba4 {[%emt 0:00:05]} b5 {[%emt 0:00:05]} 7. Bc2 {[%emt 0:00:05]} e6 {[%emt 0:00:05]} 8. O-O {[%emt 0:00:05]} Be7 {[%emt 0:00:06]} 9. d4 {[%emt 0:00:05]} Bb7 {[%emt 0:00:11]} 10. a4 {[%emt 0:00:05]} O-O {[%emt 0:00:46]} 11. Rd1 {[%emt 0:00:05]} cxd4 {[%emt 0:00:05]} 12. cxd4 {[%emt 0:00:05]} b4 {[%emt 0:00:05]} 13. b3 {[%emt 0:00:05]} Rc8 {[%emt 0:00:27]} 14. Bb2 {[%emt 0:00:05]} d5 {[%emt 0:00:39]} 15. e5 {[%emt 0:00:05]} Ne4 {[%emt 0:00:05]} 16. Ne1 {[%emt 0:01:40]} Qb6 {[%emt 0:02:13]} 17. Bxe4 {[%emt 0:01:24]} dxe4 {[%emt 0:00:05]} 18. Nd2 {[%emt 0:00:06]} Bd5 {[%emt 0:00:51]} 19. Nc4 {[%emt 0:02:13]} Qb7 {[%emt 0:01:14]} 20. Nc2 {[%emt 0:00:54]} Rc7 {[%emt 0:02:05]} 21. N2e3 {[%emt 0:01:26]} Rfc8 {[%emt 0:00:44]} 22. Rac1 {[%emt 0:02:02]} Nb6 {[%emt 0:02:12]} 23. a5 {[%emt 0:07:17]} Nd7 {[%emt 0:00:23]} 24. Rc2 {[%emt 0:00:06]} Qb5 {[%emt 0:02:03]} 25. Rdc1 {[%emt 0:00:10]} Bg5 {[%emt 0:02:38]} 26. Kf1 {[%emt 0:00:38]} Bxe3 {[%emt 0:02:48]} 27. fxe3 {[%emt 0:00:18]} Bxc4 {[%emt 0:00:24]} 28. bxc4 {[%emt 0:00:36]} Qxa5 {[%emt 0:00:08]} 29. Ra1 {[%emt 0:00:05]} Qb6 {[%emt 0:00:36]} 30. c5 {[%emt 0:01:05]} Qb7 {[%emt 0:01:27]} 31. Qxa6 {[%emt 0:00:25]} Qd5 {[%emt 0:00:49]} 32. Ke2 {[%emt 0:02:27]} Nb8 {[%emt 0:01:12]} 33. Qc4 {[%emt 0:01:55]} Nc6 {[%emt 0:00:35]} 34. Qxd5 {[%emt 0:01:48]} exd5 {[%emt 0:01:24]} 35. Bc1 {[%emt 0:00:05]} f6 {[%emt 0:01:18]} 36. exf6 {[%emt 0:00:25]} gxf6 {[%emt 0:00:06]} 37. Kd1 {[%emt 0:00:25]} Kf7 {[%emt 0:00:38]} 38. Rf2 {[%emt 0:00:05]} Ke6 {[%emt 0:00:05]} 39. Kc2 {[%emt 0:00:05]} f5 {[%emt 0:02:53]} 40. Kb3 {[%emt 0:00:42]} Rb7 {[%emt 0:00:44]} 41. Bd2 {[%emt 0:00:24]} Rb5 {[%emt 0:01:27]} 42. Ra6 {[%emt 0:00:42]} Ra5 {[%emt 0:00:33]} 43. Rxa5 {[%emt 0:03:03]} Nxa5+ {[%emt 0:00:05]} 44. Kxb4 {[%emt 0:00:10]} Nc4 {[%emt 0:00:05]} 45. Bc1 {[%emt 0:00:32]} Rb8+ {[%emt 0:02:03]} 46. Kc3 {[%emt 0:00:19]} Rb1 {[%emt 0:00:14]} 47. Kc2 {[%emt 0:00:29]} Ra1 {[%emt 0:00:17]} 48. Re2 {[%emt 0:00:51]} Kd7 {[%emt 0:01:10]} 49. Bb2 {[%emt 0:01:48]} Rg1 {[%emt 0:01:15]} 50. Bc1 {[%emt 0:00:05]} Rf1 {[%emt 0:00:32]} 51. g3 {[%emt 0:02:33]} Kc6 {[%emt 0:00:28]} 52. Bd2 {[%emt 0:02:21]} h5 {[%emt 0:01:13]} 53. Be1 {[%emt 0:00:18]} Kb5 {[%emt 0:01:53]} 54. Kd1 {[%emt 0:00:16]} Kc6 {[%emt 0:00:20]} 55. Ra2 {[%emt 0:01:10]} Nxe3+ {[%emt 0:04:52]} 56. Ke2 {[%emt 0:00:08]} Rf3 {[%emt 0:00:00]} 57. Ra6+ {[%emt 0:00:07]} Kb7 {[%emt 0:00:00]} 58. Rb6+ {[%emt 0:00:19]} Kc7 {[%emt 0:00:00]} 59. Rh6 {[%emt 0:00:37]} Nc2 {[%emt 0:00:00]} 60. Ba5+ {[%emt 0:00:05]} Kc8 {[%emt 0:00:00]} 61. c6 {[%emt 0:00:22]} Nxd4+ {[%emt 0:00:00]} 62. Ke1 {[%emt 0:00:06]} Re3+ {[%emt 0:00:00]} 63. Kf1 {[%emt 0:00:07]} Rf3+ {[%emt 0:00:00]} 64. Kg2 {[%emt 0:00:05]} Nxc6 {[%emt 0:00:00]} 65. Rxc6+ {[%emt 0:00:05]} Kd7 {[%emt 0:00:00]} 66. Rc2 {[%emt 0:01:00]} Ra3 {[%emt 0:00:00]} 67. Bb6 {[%emt 0:00:21]} Rb3 {[%emt 0:00:00]} 68. Bd4 {[%emt 0:00:06]} Rb4 {[%emt 0:00:00]} 69. Rd2 {[%emt 0:00:05]} Ke6 {[%emt 0:00:00]} 70. Kf2 {[%emt 0:00:22]} Rb3 {[%emt 0:00:00]} 71. Ke2 {[%emt 0:00:32]} h4 {[%emt 0:00:00]} 72. Be3 {[%emt 0:00:24]} h3 {[%emt 0:00:00]} 73. Ra2 {[%emt 0:00:05]} Rb1 {[%emt 0:00:00]} 74. Ra6+ {[%emt 0:00:26]} Kd7 {[%emt 0:00:00]} 75. Rf6 {[%emt 0:00:20]} Rh1 {[%emt 0:00:00]} 76. Rxf5 {[%emt 0:00:05]} Rxh2+ {[%emt 0:00:00]} 77. Bf2 {[%emt 0:00:11]} Ke6 {[%emt 0:00:00]} 78. Rh5 {[%emt 0:00:05]} d4 {[%emt 0:00:00]} 79. Rh6+ {[%emt 0:00:23]} Kd5 {[%emt 0:00:00]} 80. Kf1 {[%emt 0:00:12]} e3 {[%emt 0:00:00]} 81. Be1 {[%emt 0:00:12]} d3 {[%emt 0:00:00]} 82. Rh8 {[%emt 0:00:05]} Rh1# {[%emt 0:00:00]} 0-1